fUSD/lending_fUSD_20260617
["ID","MTS","AMOUNT","RATE_DAILY","PERIOD"]
[425227917,1781627440000,-2500.0,0.00014991,2]
[425227918,1781627440000,-600.0,0.00014991,2]
[425227951,1781627440000,-500.0,0.00015068,7]
[425227945,1781627440000,-500.0,0.00015068,7]
[425227950,1781627440000,-500.0,0.00015068,7]
[425227947,1781627440000,-500.0,0.00015068,7]
[425227955,1781627440000,-10295.13604581,0.000152,2]
[425227956,1781627440000,-926.5054416,0.000152,2]
[425227954,1781627440000,-162.0,0.00015129,2]
[425227958,1781627440000,-318.0,0.00015261,2]
[425227960,1781627440000,-926.5054416,0.000153,2]
[425227957,1781627440000,-314.0,0.00015261,2]
[425227959,1781627440000,-10295.13604581,0.000153,2]
[425227961,1781627440000,-12983.52,0.0001531,2]
[425227963,1781627440000,-10295.13604581,0.000155,2]
[425227964,1781627440000,-926.5054416,0.000155,2]
[425227965,1781627440000,-150.99,0.000155,2]
[425227967,1781627440000,-10295.13604581,0.000156,2]
[425227966,1781627440000,-399.43,0.000155,2]
[425227968,1781627440000,-926.5054416,0.000156,2]
[425227921,1781627440000,-198.0,0.00014991,2]
[425227948,1781627440000,-500.0,0.00015068,7]
[425227952,1781627440000,-615.86,0.00015068,7]
[425227962,1781627440000,-186.1,0.0001531,2]
[425227949,1781627440000,-500.0,0.00015068,7]
[425227928,1781627440000,-500.0,0.00015,2]
[425227953,1781627440000,-596.57,0.00015129,2]
[425227927,1781627440000,-926.5054416,0.00015,2]
[425227926,1781627440000,-10295.13604581,0.00015,2]
[425227929,1781627440000,-160.0,0.00015014,2]
[425227930,1781627440000,-314.0,0.00015042,2]
[425227934,1781627440000,-500.0,0.00015068,7]
[425227932,1781627440000,-500.0,0.00015068,7]
[425227933,1781627440000,-500.0,0.00015068,7]
[425227936,1781627440000,-500.0,0.00015068,7]
[425227931,1781627440000,-500.0,0.00015068,7]
[425227939,1781627440000,-500.0,0.00015068,7]
[425227937,1781627440000,-500.0,0.00015068,7]
[425227940,1781627440000,-500.0,0.00015068,7]
[425227943,1781627440000,-500.0,0.00015068,7]
[425227944,1781627440000,-500.0,0.00015068,7]
[425227942,1781627440000,-500.0,0.00015068,7]
[425227941,1781627440000,-500.0,0.00015068,7]
[425227935,1781627440000,-500.0,0.00015068,7]
[425227938,1781627440000,-500.0,0.00015068,7]
[425227946,1781627440000,-500.0,0.00015068,7]
[425227997,1781627441000,-1130.05289048,0.00016438,2]
[425228007,1781627441000,-1130.05289048,0.00016438,2]
[425228006,1781627441000,-1130.05289048,0.00016438,2]
[425228002,1781627441000,-1130.05289048,0.00016438,2]
[425228004,1781627441000,-1130.05289048,0.00016438,2]
[425228003,1781627441000,-1130.05289048,0.00016438,2]
[425227998,1781627441000,-1130.05289048,0.00016438,2]
[425227999,1781627441000,-1130.05289048,0.00016438,2]
[425228001,1781627441000,-1130.05289048,0.00016438,2]
[425228009,1781627441000,-1130.05289048,0.00016438,2]
[425228000,1781627441000,-1130.05289048,0.00016438,2]
[425228005,1781627441000,-1130.05289048,0.00016438,2]
[425228017,1781627441000,-1130.05289048,0.00016438,2]
[425228008,1781627441000,-1130.05289048,0.00016438,2]
[425228011,1781627441000,-1130.05289048,0.00016438,2]
[425228015,1781627441000,-1130.05289048,0.00016438,2]
[425228013,1781627441000,-1130.05289048,0.00016438,2]
[425228014,1781627441000,-1130.05289048,0.00016438,2]
[425228016,1781627441000,-1130.05289048,0.00016438,2]
[425228018,1781627441000,-1130.05289048,0.00016438,2]
[425228019,1781627441000,-1130.05289048,0.00016438,2]
[425228020,1781627441000,-1130.05289048,0.00016438,2]
[425228026,1781627441000,-1130.05289048,0.00016438,2]
[425227995,1781627441000,-1130.05289048,0.00016438,2]
[425228010,1781627441000,-1130.05289048,0.00016438,2]
[425227996,1781627441000,-1130.05289048,0.00016438,2]
[425227972,1781627441000,-10295.13604581,0.000158,2]
[425227986,1781627441000,-500.0,0.00016437,2]
[425228025,1781627441000,-1130.05289048,0.00016438,2]
[425227969,1781627441000,-3646.0,0.00015656,2]
[425227970,1781627441000,-153.0,0.00015726,2]
[425227971,1781627441000,-209.08,0.00015762,2]
[425227973,1781627441000,-10295.13604581,0.000159,2]
[425227975,1781627441000,-300.0,0.00016,2]
[425227976,1781627441000,-200.339764,0.00016,2]
[425227979,1781627441000,-505.74090906,0.00016116,2]
[425227977,1781627441000,-10295.13604581,0.000161,2]
[425227978,1781627441000,-9999.99,0.00016116,2]
[425227974,1781627441000,-161.0,0.000159,2]
[425227994,1781627441000,-1130.05289048,0.00016438,2]
[425227981,1781627441000,-10295.13604581,0.000162,2]
[425227983,1781627441000,-990.9962,0.000163,2]
[425227982,1781627441000,-505.74090906,0.00016216,2]
[425227985,1781627441000,-10295.13604581,0.000164,2]
[425227984,1781627441000,-321.0,0.00016384,2]
[425227993,1781627441000,-1130.05289048,0.00016438,2]
[425227991,1781627441000,-500.0,0.00016437,2]
[425227992,1781627441000,-500.0,0.00016437,2]
[425227988,1781627441000,-500.0,0.00016437,2]
[425227987,1781627441000,-500.0,0.00016437,2]
[425227989,1781627441000,-500.0,0.00016437,2]
[425227990,1781627441000,-500.0,0.00016437,2]
[425227980,1781627441000,-766.42,0.00016116,2]
[425228024,1781627441000,-1130.05289048,0.00016438,2]
[425228012,1781627441000,-1130.05289048,0.00016438,2]
[425228022,1781627441000,-1130.05289048,0.00016438,2]
[425228052,1781627441000,-1130.05289048,0.00016438,2]
[425228056,1781627441000,-1115.47156287,0.00016438,2]
[425228060,1781627441000,-1115.47156287,0.00016438,2]
[425228058,1781627441000,-1115.47156287,0.00016438,2]
[425228061,1781627441000,-1115.47156287,0.00016438,2]
[425228062,1781627441000,-1115.47156287,0.00016438,2]
[425228057,1781627441000,-1115.47156287,0.00016438,2]
[425228059,1781627441000,-1115.47156287,0.00016438,2]
[425228064,1781627441000,-1115.47156287,0.00016438,2]
[425228067,1781627441000,-1115.47156287,0.00016438,2]
[425228073,1781627441000,-1115.47156287,0.00016438,2]
[425228054,1781627441000,-1130.05289048,0.00016438,2]
[425228070,1781627441000,-1115.47156287,0.00016438,2]
[425228072,1781627441000,-1115.47156287,0.00016438,2]
[425228068,1781627441000,-1115.47156287,0.00016438,2]
[425228069,1781627441000,-1115.47156287,0.00016438,2]
[425228071,1781627441000,-1115.47156287,0.00016438,2]
[425228074,1781627441000,-1115.47156287,0.00016438,2]
[425228076,1781627441000,-1115.47156287,0.00016438,2]
[425228075,1781627441000,-1115.47156287,0.00016438,2]
[425228078,1781627441000,-1115.47156287,0.00016438,2]
[425228077,1781627441000,-1115.47156287,0.00016438,2]
[425228079,1781627441000,-1115.47156287,0.00016438,2]
[425228021,1781627441000,-1130.05289048,0.00016438,2]
[425228065,1781627441000,-1115.47156287,0.00016438,2]
[425228063,1781627441000,-1115.47156287,0.00016438,2]
[425228066,1781627441000,-1115.47156287,0.00016438,2]
[425228053,1781627441000,-1130.05289048,0.00016438,2]
[425228055,1781627441000,-1130.05289048,0.00016438,2]
[425228036,1781627441000,-1130.05289048,0.00016438,2]
[425228037,1781627441000,-1130.05289048,0.00016438,2]
[425228038,1781627441000,-1130.05289048,0.00016438,2]
[425228029,1781627441000,-1130.05289048,0.00016438,2]
[425228027,1781627441000,-1130.05289048,0.00016438,2]
[425228080,1781627441000,-1115.47156287,0.00016438,2]
[425228028,1781627441000,-1130.05289048,0.00016438,2]
[425228032,1781627441000,-1130.05289048,0.00016438,2]
[425228033,1781627441000,-1130.05289048,0.00016438,2]
[425228031,1781627441000,-1130.05289048,0.00016438,2]
[425228030,1781627441000,-1130.05289048,0.00016438,2]
[425228035,1781627441000,-1130.05289048,0.00016438,2]
[425228023,1781627441000,-1130.05289048,0.00016438,2]
[425228046,1781627441000,-1130.05289048,0.00016438,2]
[425228039,1781627441000,-1130.05289048,0.00016438,2]
[425228041,1781627441000,-1130.05289048,0.00016438,2]
[425228043,1781627441000,-1130.05289048,0.00016438,2]
[425228044,1781627441000,-1130.05289048,0.00016438,2]
[425228047,1781627441000,-1130.05289048,0.00016438,2]
[425228050,1781627441000,-1130.05289048,0.00016438,2]
[425228051,1781627441000,-1130.05289048,0.00016438,2]
[425228034,1781627441000,-1130.05289048,0.00016438,2]
[425228045,1781627441000,-1130.05289048,0.00016438,2]
[425228048,1781627441000,-1130.05289048,0.00016438,2]
[425228049,1781627441000,-1130.05289048,0.00016438,2]
[425228112,1781627442000,-1500.0,0.00017611,2]
[425228109,1781627442000,-180.0,0.00017446,2]
[425228116,1781627442000,-350.0,0.00017895,2]
[425228119,1781627442000,-9899.94276389,0.00018,2]
[425228118,1781627442000,-500.0,0.00017999,2]
[425228111,1781627442000,-164.17154217,0.000176,2]
[425228114,1781627442000,-209.08,0.00017732,2]
[425228115,1781627442000,-155.83,0.00017895,2]
[425228117,1781627442000,-200.0,0.00017895,2]
[425228110,1781627442000,-198.28994931,0.000175,2]
[425228120,1781627442000,-1782.36564132,0.00018,2]
[425228113,1781627442000,-166.66,0.00017716,2]
[425228122,1781627442000,-200.0,0.00018,2]
[425228125,1781627442000,-9899.94276389,0.000182,2]
[425228123,1781627442000,-166.66,0.00018074,2]
[425228124,1781627442000,-1555.5,0.00018159,2]
[425228131,1781627442000,-9899.94276389,0.000184,2]
[425228127,1781627442000,-2328.0,0.0001828,2]
[425228126,1781627442000,-1782.36564132,0.000182,2]
[425228128,1781627442000,-380.60723533,0.00018329,2]
[425228130,1781627442000,-819.0,0.00018359,5]
[425228129,1781627442000,-89910.38,0.00018356,2]
[425228132,1781627442000,-1782.36564132,0.000184,2]
[425228135,1781627442000,-1782.36564132,0.000185,2]
[425228133,1781627442000,-166.66,0.00018432,2]
[425228121,1781627442000,-350.0,0.00018,2]
[425228106,1781627442000,-9999.99,0.00017141,2]
[425228086,1781627442000,-1115.47156287,0.00016438,2]
[425228107,1781627442000,-900.0,0.00017279,2]
[425228134,1781627442000,-9899.94276389,0.000185,2]
[425228084,1781627442000,-1115.47156287,0.00016438,2]
[425228082,1781627442000,-1115.47156287,0.00016438,2]
[425228085,1781627442000,-1115.47156287,0.00016438,2]
[425228081,1781627442000,-1115.47156287,0.00016438,2]
[425228083,1781627442000,-1115.47156287,0.00016438,2]
[425228087,1781627442000,-230.84,0.00016438,2]
[425228090,1781627442000,-600.0,0.00016489,2]
[425228091,1781627442000,-195.0,0.00016489,2]
[425228093,1781627442000,-600.0,0.00016489,2]
[425228098,1781627442000,-200.0,0.00016489,2]
[425228094,1781627442000,-200.0,0.00016489,2]
[425228095,1781627442000,-195.0,0.00016489,2]
[425228096,1781627442000,-195.0,0.00016489,2]
[425228088,1781627442000,-195.0,0.00016488,2]
[425228089,1781627442000,-2500.0,0.00016489,2]
[425228097,1781627442000,-235.21811412,0.00016489,2]
[425228092,1781627442000,-150.0,0.00016489,2]
[425228100,1781627442000,-10295.13604581,0.000166,2]
[425228099,1781627442000,-2500.0,0.00016489,2]
[425228108,1781627442000,-166.66,0.00017358,2]
[425228101,1781627442000,-168.64,0.00016712,2]
[425228102,1781627442000,-166.66,0.00017,2]
[425228105,1781627442000,-1443.029772,0.00017121,2]
[425228103,1781627442000,-596.57,0.0001702,2]
[425228104,1781627442000,-199.727304,0.00017119,2]
[425228136,1781627442000,-523.0,0.00018538,2]
[425228137,1781627442000,-900.0,0.00018649,2]
[425228138,1781627442000,-3646.0,0.00018656,2]
[425228176,1781627442000,-202.0,0.0002,2]
[425228168,1781627442000,-2477.34271474,0.0002,2]
[425228173,1781627442000,-200.0,0.0002,10]
[425228169,1781627442000,-567.0,0.0002,2]
[425228166,1781627442000,-200.0,0.0002,2]
[425228167,1781627442000,-973.0,0.0002,2]
[425228171,1781627442000,-529.0,0.0002,2]
[425228172,1781627442000,-1674.0,0.0002,2]
[425228174,1781627442000,-377.0,0.0002,2]
[425228178,1781627442000,-214.24,0.0002,2]
[425228187,1781627442000,-190.51874357,0.0002,2]
[425228188,1781627442000,-190.51874357,0.0002,2]
[425228180,1781627442000,-541.0,0.0002,2]
[425228182,1781627442000,-393.0,0.0002,2]
[425228184,1781627442000,-200.0,0.0002,2]
[425228177,1781627442000,-400.0,0.0002,2]
[425228181,1781627442000,-541.0,0.0002,2]
[425228183,1781627442000,-2396.0,0.0002,2]
[425228185,1781627442000,-1379.0,0.0002,2]
[425228186,1781627442000,-3632.0,0.0002,2]
[425228179,1781627442000,-200.0,0.0002,10]
[425228190,1781627442000,-190.51874357,0.0002,2]
[425228189,1781627442000,-190.51874357,0.0002,2]
[425228192,1781627442000,-190.51874357,0.0002,2]
[425228193,1781627442000,-269466.81,0.0002,2]
[425228164,1781627442000,-500.0,0.00019999,2]
[425228170,1781627442000,-5164.743047,0.0002,2]
[425228191,1781627442000,-462.0,0.0002,2]
[425228165,1781627442000,-293.0,0.0002,2]
[425228175,1781627442000,-915.0,0.0002,2]
[425228141,1781627442000,-1613.0535,0.00018707,2]
[425228140,1781627442000,-1782.36564132,0.000187,2]
[425228142,1781627442000,-166.66,0.0001879,2]
[425228144,1781627442000,-596.57,0.00018911,2]
[425228150,1781627442000,-784.0,0.0001928,2]
[425228145,1781627442000,-10348.44,0.00019,2]
[425228143,1781627442000,-9899.94276389,0.000189,2]
[425228151,1781627442000,-9899.94276389,0.000193,2]
[425228152,1781627442000,-1443.029773,0.000193,2]
[425228146,1781627442000,-3373.53,0.00019,2]
[425228148,1781627442000,-1672.7364795,0.00019255,2]
[425228139,1781627442000,-9899.94276389,0.000187,2]
[425228147,1781627442000,-9899.94276389,0.000191,2]
[425228160,1781627442000,-500.0,0.00019999,2]
[425228162,1781627442000,-500.0,0.00019999,2]
[425228154,1781627442000,-9899.94276389,0.000197,2]
[425228149,1781627442000,-1126.0,0.00019274,2]
[425228163,1781627442000,-500.0,0.00019999,2]
[425228159,1781627442000,-500.0,0.00019999,2]
[425228157,1781627442000,-1734.62772924,0.00019803,2]
[425228161,1781627442000,-500.0,0.00019999,2]
[425228156,1781627442000,-332.86,0.000198,7]
[425228155,1781627442000,-209.08,0.00019702,2]
[425228153,1781627442000,-9899.94276389,0.000195,2]
[425228158,1781627442000,-500.0,0.00019999,2]
[425228232,1781627443000,-316.0,0.00021,2]
[425228233,1781627443000,-174.55046234,0.00021,4]
[425228230,1781627443000,-915.0,0.00021,2]
[425228228,1781627443000,-1674.0,0.00021,2]
[425228225,1781627443000,-567.0,0.00021,2]
[425228229,1781627443000,-377.0,0.00021,2]
[425228227,1781627443000,-529.0,0.00021,2]
[425228231,1781627443000,-202.0,0.00021,2]
[425228224,1781627443000,-2797.0,0.00021,2]
[425228226,1781627443000,-5164.743047,0.00021,2]
[425228240,1781627443000,-462.0,0.00021,2]
[425228235,1781627443000,-541.0,0.00021,2]
[425228244,1781627443000,-4782.92,0.0002137,2]
[425228236,1781627443000,-310.0,0.00021,2]
[425228245,1781627443000,-1004.44824957,0.000214,2]
[425228237,1781627443000,-393.0,0.00021,2]
[425228238,1781627443000,-2396.0,0.00021,2]
[425228239,1781627443000,-3632.0,0.00021,2]
[425228243,1781627443000,-2477.34271474,0.000212,2]
[425228242,1781627443000,-1004.44824957,0.000212,2]
[425228234,1781627443000,-541.0,0.00021,2]
[425228247,1781627443000,-698.0,0.00021404,5]
[425228219,1781627443000,-200.0,0.00021,2]
[425228241,1781627443000,-1307.0,0.00021134,5]
[425228220,1781627443000,-973.0,0.00021,2]
[425228205,1781627443000,-150.0,0.0002058,2]
[425228223,1781627443000,-2315.0,0.00021,2]
[425228246,1781627443000,-2477.34271474,0.000214,2]
[425228199,1781627443000,-1239.41057502,0.00020238,2]
[425228198,1781627443000,-200.0,0.00020212,2]
[425228194,1781627443000,-300.0,0.000201,10]
[425228197,1781627443000,-199.727304,0.00020207,2]
[425228196,1781627443000,-1046.0,0.00020207,2]
[425228195,1781627443000,-2477.34271474,0.000202,2]
[425228200,1781627443000,-1798.80895522,0.00020351,2]
[425228203,1781627443000,-11932.22,0.00020548,2]
[425228201,1781627443000,-500.0,0.00020399,2]
[425228207,1781627443000,-150.0,0.0002058,2]
[425228221,1781627443000,-1004.44824957,0.00021,2]
[425228208,1781627443000,-150.0,0.0002058,2]
[425228202,1781627443000,-2477.34271474,0.000204,2]
[425228210,1781627443000,-150.0,0.0002058,2]
[425228209,1781627443000,-150.0,0.0002058,2]
[425228212,1781627443000,-2477.34271474,0.000208,2]
[425228214,1781627443000,-1865.36488656,0.00020899,2]
[425228213,1781627443000,-596.57,0.00020802,2]
[425228215,1781627443000,-800.41,0.00020908,2]
[425228222,1781627443000,-2477.34271474,0.00021,2]
[425228211,1781627443000,-2477.34271474,0.000206,2]
[425228218,1781627443000,-293.0,0.00021,2]
[425228216,1781627443000,-194.97869125,0.00020985,3]
[425228204,1781627443000,-150.0,0.0002058,2]
[425228248,1781627443000,-172.48934562,0.00021404,3]
[425228249,1781627443000,-1934.38338736,0.00021447,2]
[425228253,1781627443000,-3000.0,0.000216,2]
[425228279,1781627443000,-500.0,0.00021995,2]
[425228282,1781627443000,-151.0,0.00021995,2]
[425228283,1781627443000,-152.28012462,0.00021995,2]
[425228289,1781627443000,-155.14040384,0.00021995,2]
[425228287,1781627443000,-1030.0,0.00021995,2]
[425228285,1781627443000,-151.0,0.00021995,2]
[425228280,1781627443000,-469.31873577,0.00021995,2]
[425228284,1781627443000,-151.0,0.00021995,2]
[425228291,1781627443000,-201.93286098,0.00021995,2]
[425228304,1781627443000,-151.0,0.00021995,2]
[425228307,1781627443000,-1235.18214925,0.00021995,2]
[425228281,1781627443000,-154.45809484,0.00021995,2]
[425228306,1781627443000,-1191.11104074,0.00021995,2]
[425228293,1781627443000,-1068.11,0.00021995,2]
[425228295,1781627443000,-151.0,0.00021995,2]
[425228297,1781627443000,-1107.63007,0.00021995,2]
[425228300,1781627443000,-201.93286098,0.00021995,2]
[425228302,1781627443000,-151.0,0.00021995,2]
[425228303,1781627443000,-578.20924308,0.00021995,2]
[425228309,1781627443000,-151.0,0.00021995,2]
[425228311,1781627443000,-500.0,0.00021995,2]
[425228310,1781627443000,-9211.34798984,0.00021995,2]
[425228312,1781627443000,-1280.88388877,0.00021995,2]
[425228250,1781627443000,-578.54814539,0.00021553,2]
[425228308,1781627443000,-200.0,0.00021995,2]
[425228276,1781627443000,-500.0,0.00021995,2]
[425228305,1781627443000,-1148.61238259,0.00021995,2]
[425228275,1781627443000,-500.0,0.00021995,2]
[425228274,1781627443000,-500.0,0.00021995,2]
[425228254,1781627443000,-206.0,0.00021645,3]
[425228252,1781627443000,-300.0,0.000216,7]
[425228256,1781627443000,-209.08,0.00021672,2]
[425228255,1781627443000,-3646.0,0.00021656,2]
[425228257,1781627443000,-2477.34271474,0.000217,2]
[425228259,1781627443000,-2477.34271474,0.000219,2]
[425228258,1781627443000,-1004.44824957,0.000219,2]
[425228260,1781627443000,-1009.32,0.00021918,2]
[425228261,1781627443000,-5000.0,0.00021918,2]
[425228262,1781627443000,-158.59,0.00021918,2]
[425228264,1781627443000,-800.0,0.00021918,2]
[425228251,1781627443000,-1004.44824957,0.000216,2]
[425228272,1781627443000,-500.0,0.00021995,2]
[425228267,1781627443000,-800.0,0.00021918,2]
[425228273,1781627443000,-500.0,0.00021995,2]
[425228271,1781627443000,-500.0,0.00021995,2]
[425228270,1781627443000,-800.0,0.00021918,2]
[425228277,1781627443000,-542.82,0.00021995,2]
[425228269,1781627443000,-800.0,0.00021918,2]
[425228268,1781627443000,-800.0,0.00021918,2]
[425228265,1781627443000,-800.0,0.00021918,2]
[425228263,1781627443000,-800.0,0.00021918,2]
[425228266,1781627443000,-800.0,0.00021918,2]
[425228278,1781627443000,-500.0,0.00021995,2]
[425228351,1781627444000,-151.0,0.00021995,2]
[425228348,1781627444000,-500.0,0.00021995,2]
[425228355,1781627444000,-500.0,0.00021995,2]
[425228356,1781627444000,-1712.93078311,0.00021995,2]
[425228344,1781627444000,-500.0,0.00021995,2]
[425228341,1781627444000,-1592.87721992,0.00021995,2]
[425228357,1781627444000,-500.0,0.00021995,2]
[425228349,1781627444000,-1651.81367706,0.00021995,2]
[425228345,1781627444000,-151.0,0.00021995,2]
[425228346,1781627444000,-152.0,0.00021995,2]
[425228340,1781627444000,-500.0,0.00021995,2]
[425228350,1781627444000,-151.0,0.00021995,2]
[425228352,1781627444000,-500.0,0.00021995,2]
[425228361,1781627444000,-500.0,0.00021995,2]
[425228354,1781627444000,-152.0,0.00021995,2]
[425228359,1781627444000,-1776.30922209,0.00021995,2]
[425228358,1781627444000,-151.0,0.00021995,2]
[425228360,1781627444000,-151.0,0.00021995,2]
[425228362,1781627444000,-152.0,0.00021995,2]
[425228364,1781627444000,-151.0,0.00021995,2]
[425228363,1781627444000,-500.0,0.00021995,2]
[425228368,1781627444000,-152.0,0.00021995,2]
[425228365,1781627444000,-1842.0326633,0.00021995,2]
[425228367,1781627444000,-500.0,0.00021995,2]
[425228366,1781627444000,-151.0,0.00021995,2]
[425228353,1781627444000,-151.0,0.00021995,2]
[425228336,1781627444000,-151.0,0.00021995,2]
[425228318,1781627444000,-201.93286098,0.00021995,2]
[425228339,1781627444000,-152.0,0.00021995,2]
[425228313,1781627444000,-630.79754641,0.00021995,2]
[425228319,1781627444000,-500.0,0.00021995,2]
[425228315,1781627444000,-500.0,0.00021995,2]
[425228317,1781627444000,-1328.27659266,0.00021995,2]
[425228314,1781627444000,-151.0,0.00021995,2]
[425228316,1781627444000,-188.93487313,0.00021995,2]
[425228321,1781627444000,-695.39793187,0.00021995,2]
[425228331,1781627444000,-500.0,0.00021995,2]
[425228320,1781627444000,-151.0,0.00021995,2]
[425228323,1781627444000,-151.0,0.00021995,2]
[425228322,1781627444000,-500.0,0.00021995,2]
[425228324,1781627444000,-1377.42282658,0.00021995,2]
[425228329,1781627444000,-151.0,0.00021995,2]
[425228325,1781627444000,-500.0,0.00021995,2]
[425228326,1781627444000,-500.0,0.00021995,2]
[425228328,1781627444000,-1428.38747117,0.00021995,2]
[425228327,1781627444000,-151.0,0.00021995,2]
[425228330,1781627444000,-152.0,0.00021995,2]
[425228334,1781627444000,-201.93286098,0.00021995,2]
[425228332,1781627444000,-1481.2378076,0.00021995,2]
[425228333,1781627444000,-500.0,0.00021995,2]
[425228337,1781627444000,-1536.04360648,0.00021995,2]
[425228343,1781627444000,-201.93286098,0.00021995,2]
[425228338,1781627444000,-500.0,0.00021995,2]
[425228335,1781627444000,-151.0,0.00021995,2]
[425228342,1781627444000,-151.0,0.00021995,2]
[425228371,1781627444000,-151.0,0.00021995,2]
[425228370,1781627444000,-151.0,0.00021995,2]
[425228380,1781627444000,-151.0,0.00021995,2]
[425228402,1781627444000,-973.0,0.00022,2]
[425228404,1781627444000,-5164.743047,0.00022,2]
[425228407,1781627444000,-377.0,0.00022,2]
[425228413,1781627444000,-541.0,0.00022,2]
[425228406,1781627444000,-1674.0,0.00022,2]
[425228405,1781627444000,-529.0,0.00022,2]
[425228411,1781627444000,-450.0,0.00022,2]
[425228414,1781627444000,-393.0,0.00022,2]
[425228412,1781627444000,-541.0,0.00022,2]
[425228410,1781627444000,-202.0,0.00022,2]
[425228408,1781627444000,-2576.0,0.00022,2]
[425228409,1781627444000,-915.0,0.00022,2]
[425228400,1781627444000,-197.03976057,0.00021995,2]
[425228415,1781627444000,-2396.0,0.00022,2]
[425228423,1781627444000,-469.31873577,0.00022105,2]
[425228421,1781627444000,-1307.0,0.00022061,5]
[425228418,1781627444000,-462.0,0.00022,2]
[425228422,1781627444000,-1004.44824957,0.000221,2]
[425228417,1781627444000,-3632.0,0.00022,2]
[425228419,1781627444000,-469.31873577,0.0002205,2]
[425228420,1781627444000,-151.0,0.0002205,2]
[425228425,1781627444000,-469.31873577,0.0002216,2]
[425228424,1781627444000,-151.0,0.00022105,2]
[425228427,1781627444000,-800.0,0.00022192,2]
[425228428,1781627444000,-800.0,0.00022192,2]
[425228372,1781627444000,-500.0,0.00021995,2]
[425228416,1781627444000,-1592.75,0.00022,2]
[425228401,1781627444000,-293.0,0.00022,2]
[425228426,1781627444000,-151.0,0.0002216,2]
[425228399,1781627444000,-174.61919141,0.00021995,2]
[425228369,1781627444000,-500.0,0.00021995,2]
[425228374,1781627444000,-500.0,0.00021995,2]
[425228378,1781627444000,-152.0,0.00021995,2]
[425228373,1781627444000,-152.0,0.00021995,2]
[425228379,1781627444000,-500.0,0.00021995,2]
[425228377,1781627444000,-151.0,0.00021995,2]
[425228376,1781627444000,-500.0,0.00021995,2]
[425228403,1781627444000,-567.0,0.00022,2]
[425228381,1781627444000,-152.0,0.00021995,2]
[425228383,1781627444000,-500.0,0.00021995,2]
[425228384,1781627444000,-151.0,0.00021995,2]
[425228387,1781627444000,-2005.9555727,0.00021995,2]
[425228392,1781627444000,-1980.8648231,0.00021995,2]
[425228375,1781627444000,-151.0,0.00021995,2]
[425228382,1781627444000,-151.0,0.00021995,2]
[425228385,1781627444000,-152.0,0.00021995,2]
[425228397,1781627444000,-151.0,0.00021995,2]
[425228398,1781627444000,-200.0,0.00021995,2]
[425228395,1781627444000,-151.0,0.00021995,2]
[425228396,1781627444000,-2054.15682156,0.00021995,2]
[425228393,1781627444000,-152.0,0.00021995,2]
[425228386,1781627444000,-151.0,0.00021995,2]
[425228391,1781627444000,-1910.18787185,0.00021995,2]
[425228390,1781627444000,-151.0,0.00021995,2]
[425228388,1781627444000,-151.0,0.00021995,2]
[425228389,1781627444000,-152.0,0.00021995,2]
[425228394,1781627444000,-151.0,0.00021995,2]
[425228466,1781627445000,-200.0,0.00022543,2]
[425228468,1781627445000,-469.31873577,0.00022545,2]
[425228467,1781627445000,-181.08010149,0.00022543,2]
[425228464,1781627445000,-209.40437684,0.00022543,2]
[425228462,1781627445000,-151.0,0.00022543,2]
[425228458,1781627445000,-209.40437684,0.00022543,2]
[425228469,1781627445000,-151.0,0.00022545,2]
[425228459,1781627445000,-200.0,0.00022543,2]